bitfinex/quotes_SOLUSD_20251119
["timestamp","ask_amount","ask_price","bid_price","bid_amount"]
[1763589326464,0.1,135.78,135.76,2.46]
[1763589327890,0.1,135.78,135.77,28.60978769]
[1763589328481,0.1,135.79,135.77,29.34632742]
[1763589328680,0.1,135.79,135.78,10.48882769]
[1763589329256,0.1,135.82,135.81,27.90978769]
[1763589329456,0.1,135.82,135.81,29.66978769]
[1763589329674,0.1,135.83,135.82,17.15151359]
[1763589329972,0.79,135.87,135.82,10.35882769]
[1763589330176,0.79,135.87,135.84,9.78882769]
[1763589330363,0.79,135.87,135.8,9.78882769]
[1763589330562,0.79,135.87,135.81,1.76]
[1763589330957,0.79,135.87,135.8,9.78882769]
[1763589331162,18.91096,135.87,135.81,1.76]
[1763589331366,18.91096,135.87,135.75,7.83614623]
[1763589331567,0.69,135.86,135.76,9.78882769]
[1763589331759,0.69,135.86,135.77,1.76]
[1763589331965,0.69,135.86,135.78,1.76]
[1763589332265,18.12096,135.83,135.75,9.78882769]
[1763589332466,18.12096,135.83,135.76,1.76]
[1763589332788,0.69,135.82,135.76,1.76]
[1763589333286,0.69,135.82,135.72,9.78882769]
[1763589333585,0.69,135.82,135.74,9.78882769]
[1763589333766,18.12096,135.8,135.74,9.78882769]
[1763589334166,0.69,135.79,135.74,9.78882769]
[1763589334677,0.69,135.79,135.74,10.25882769]
[1763589335070,0.69,135.81,135.75,0.47]
[1763589335280,0.69,135.81,135.76,1.76]
[1763589338799,0.69,135.81,135.77,1.76]
[1763589339794,18.12096,135.84,135.77,2.23]
[1763589340096,0.69,135.83,135.77,2.23]
[1763589340474,0.69,135.84,135.78,28.37978769]
[1763589340970,0.69,135.84,135.78,27.90978769]
[1763589341172,0.69,135.84,135.79,1.76]
[1763589341468,18.12096,135.83,135.74,27.90978769]
[1763589341674,18.12096,135.81,135.65,0.47]
[1763589341883,18.12096,135.75,135.66,1.0]
[1763589342079,0.69,135.74,135.68,9.78882769]
[1763589342486,0.69,135.74,135.68,10.25882769]
[1763589343994,0.69,135.74,135.68,17.62903189]
[1763589344872,0.69,135.74,135.7,9.78882769]
[1763589345084,0.69,135.77,135.71,9.59850689]
[1763589345492,0.69,135.79,135.73,9.78882769]
[1763589345969,0.69,135.79,135.73,0.47]
[1763589346371,0.69,135.79,135.73,18.59096]
[1763589346566,0.69,135.81,135.76,9.78882769]
[1763589346795,0.69,135.81,135.77,1.76]
[1763589348674,0.69,135.81,135.72,0.47]
[1763589348882,0.69,135.81,135.74,9.78882769]
[1763589349387,0.69,135.81,135.75,1.76]
[1763589350405,0.69,135.81,135.76,9.78882769]
[1763589352097,0.69,135.81,135.77,1.76]
[1763589360401,0.69,135.81,135.77,63.86]
[1763589360577,0.69,135.81,135.72,9.78882769]
[1763589360777,18.12096,135.8,135.73,1.76]
[1763589361187,0.7,135.79,135.73,1.76]
[1763589364799,0.7,135.79,135.71,18.12096]
[1763589364991,27.90978769,135.78,135.66,0.47]
[1763589365185,27.90978769,135.78,135.67,1.76]
[1763589365382,0.7,135.77,135.67,19.88096]
[1763589365584,0.7,135.77,135.68,10.25882769]
[1763589367289,0.7,135.77,135.7,9.78882769]
[1763589367496,0.7,135.77,135.71,1.76]
[1763589368006,0.7,135.77,135.72,1.76]
[1763589369225,0.7,135.77,135.73,0.47]
[1763589373524,18.12096,135.79,135.73,0.47]
[1763589373912,9.78882769,135.86,135.74,9.78882769]
[1763589374115,0.7,135.79,135.75,1.76]
[1763589375623,0.7,135.79,135.76,1.76]
[1763589380537,0.7,135.79,135.71,62.1]
[1763589380716,18.12096,135.78,135.71,62.1]
[1763589380911,23.08242197,135.77,135.67,0.47]
[1763589381111,18.78096,135.77,135.67,0.47]
[1763589381312,5.62199773,135.76,135.68,1.76]
[1763589381623,5.62199773,135.76,135.65,10.25882769]
[1763589381624,18.12096,135.73,135.65,10.25882769]
[1763589381819,18.12096,135.73,135.66,1.76]
[1763589382139,0.66,135.72,135.66,1.76]
[1763589383239,0.66,135.72,135.66,2.23]
[1763589384729,0.66,135.72,135.67,0.47]
[1763589386715,0.72,135.75,135.68,9.78882769]
[1763589386915,9.78882769,135.8,135.68,71.88882769]
[1763589387137,0.72,135.79,135.7,9.78882769]
[1763589387347,18.12096,135.78,135.71,1.76]
[1763589387517,18.12096,135.78,135.71,63.86]
[1763589387722,0.72,135.77,135.71,63.86]
[1763589388728,0.72,135.77,135.71,62.1]
[1763589388934,0.72,135.77,135.72,1.76]
[1763589389539,0.72,135.77,135.73,1.76]
[1763589390340,10.50882769,135.77,135.73,1.76]
[1763589390848,10.50882769,135.77,135.66,18.12096]
[1763589390849,18.12096,135.74,135.7,1.76]
[1763589391344,0.72,135.73,135.63,9.78882769]
[1763589391643,18.12096,135.7,135.64,1.76]
[1763589392041,0.72,135.69,135.64,1.76]
[1763589392636,0.72,135.69,135.64,2.23]
[1763589392829,0.72,135.69,135.65,1.76]
[1763589395021,18.12096,135.7,135.65,1.76]
[1763589395221,0.72,135.69,135.65,1.76]
[1763589395417,0.72,135.69,135.65,2.23]
[1763589395851,18.12096,135.7,135.66,0.47]
[1763589396042,0.72,135.72,135.66,62.57]
[1763589396245,0.72,135.74,135.66,62.57]
[1763589396420,0.72,135.74,135.67,0.47]
[1763589397526,9.78882769,135.8,135.68,9.78882769]
[1763589397527,0.72,135.76,135.68,9.78882769]
[1763589397739,0.72,135.76,135.69,1.76]
[1763589397944,0.72,135.76,135.7,0.47]
[1763589399048,0.72,135.76,135.69,62.1]
[1763589399237,0.72,135.76,135.71,1.76]
[1763589400128,5.66867966,135.76,135.71,1.76]
[1763589400649,0.72,135.75,135.71,1.76]
[1763589400833,18.12096,135.73,135.7,1.76]
[1763589401241,0.72,135.72,135.7,1.76]
[1763589407562,0.72,135.72,135.66,62.57]
[1763589407857,0.72,135.72,135.67,1.76]
[1763589408256,0.72,135.72,135.67,2.23]
[1763589409862,0.72,135.72,135.67,1.76]
[1763589410467,0.72,135.72,135.67,2.23]
[1763589411964,0.72,135.72,135.62,0.67]
[1763589412166,18.12096,135.68,135.62,0.2]
[1763589412373,18.12096,135.68,135.63,1.76]
[1763589412665,0.7,135.67,135.63,1.76]
[1763589415768,0.7,135.67,135.63,2.23]
[1763589415966,0.7,135.67,135.63,1.76]
[1763589418262,18.12096,135.63,135.62,0.2]
[1763589418566,18.12096,135.63,135.6,0.2]
[1763589418567,28.60978769,135.63,135.6,0.2]
[1763589418772,0.7,135.62,135.6,0.2]
[1763589423956,9.78882769,135.61,135.59,0.2]
[1763589424277,18.12096,135.59,135.58,0.2]
[1763589424481,27.90978769,135.59,135.57,0.2]
[1763589424770,10.48882769,135.58,135.56,0.2]
[1763589424980,27.90978769,135.54,135.53,0.2]
[1763589425365,28.60978769,135.54,135.53,0.2]
[1763589425744,0.7,135.56,135.53,0.2]
[1763589428177,27.90978769,135.57,135.53,0.2]
[1763589428480,0.7,135.56,135.53,0.2]
[1763589428884,0.7,135.56,135.53,0.92]
[1763589429056,0.7,135.56,135.53,0.2]
[1763589430265,18.82096,135.56,135.53,0.2]
[1763589432377,18.12096,135.56,135.53,0.92]
[1763589432555,10.48882769,135.59,135.54,0.72]
[1763589432758,21.781178,135.61,135.54,0.72]
[1763589432759,9.78882769,135.61,135.54,0.72]
[1763589432986,18.12096,135.58,135.54,0.72]
[1763589433368,10.48882769,135.61,135.54,0.72]
[1763589433369,0.7,135.61,135.54,0.72]
[1763589433567,22.47493852,135.66,135.54,0.72]
[1763589433779,9.78882769,135.62,135.54,0.72]
[1763589433982,18.12096,135.59,135.55,1.76]
[1763589434297,18.12096,135.59,135.54,0.72]
[1763589434473,0.7,135.58,135.55,1.76]
[1763589434984,0.7,135.58,135.53,0.2]
[1763589435191,9.78882769,135.57,135.53,0.2]
[1763589435414,18.12096,135.56,135.53,0.2]
[1763589435577,18.82096,135.56,135.53,0.2]
[1763589435761,18.12096,135.56,135.53,0.2]
[1763589436088,10.48882769,135.55,135.53,0.2]
[1763589436476,0.7,135.54,135.53,0.2]
[1763589436675,0.7,135.59,135.53,0.92]
[1763589437578,18.12096,135.58,135.53,0.92]
[1763589437968,18.82096,135.58,135.54,0.72]
[1763589440094,18.82096,135.58,135.54,2.48]
[1763589440291,0.68,135.57,135.53,1.96]
[1763589440592,0.68,135.57,135.53,2.65]
[1763589441469,0.68,135.57,135.53,1.96]
[1763589441981,0.68,135.57,135.53,2.65]
[1763589443385,0.68,135.57,135.53,1.96]
[1763589445475,18.12096,135.56,135.54,0.69]
[1763589446700,28.08993235,135.66,135.54,0.69]
[1763589446871,0.72,135.62,135.54,0.69]
[1763589447366,18.12096,135.6,135.54,0.69]
[1763589447565,0.72,135.62,135.54,0.69]
[1763589447782,22.2334578,135.66,135.54,0.69]
[1763589447987,0.72,135.64,135.54,62.79]
[1763589448397,0.72,135.64,135.55,0.7]
[1763589448570,18.12096,135.62,135.55,0.7]
[1763589449099,0.72,135.61,135.55,0.7]
[1763589449402,0.72,135.61,135.56,1.76]
[1763589449787,0.72,135.61,135.54,0.7]
[1763589449998,0.72,135.61,135.55,1.76]
[1763589450686,0.72,135.61,135.56,0.7]
[1763589450997,0.72,135.61,135.55,2.46]
[1763589453591,0.72,135.61,135.56,0.7]
[1763589456317,5.66233094,135.61,135.56,0.7]
[1763589456608,18.12096,135.58,135.56,0.7]
[1763589456812,18.12096,135.58,135.53,62.3]
[1763589457004,0.72,135.57,135.53,1.96]
[1763589459385,0.72,135.57,135.53,2.66]
[1763589459593,4.94669956,135.58,135.54,0.7]
[1763589459799,18.12096,135.55,135.53,1.96]
[1763589459988,18.12096,135.55,135.53,2.66]
[1763589460194,18.84096,135.57,135.54,0.7]
[1763589460393,18.84096,135.57,135.53,2.66]
[1763589461310,18.84096,135.57,135.53,1.96]
[1763589461515,18.84096,135.57,135.53,2.66]
[1763589462105,18.12096,135.57,135.54,0.7]
[1763589462290,18.84096,135.57,135.54,0.7]
[1763589462491,18.84096,135.57,135.54,62.8]
[1763589463585,18.12096,135.57,135.54,62.1]
[1763589463787,18.12096,135.57,135.55,0.7]
[1763589464608,0.72,135.59,135.55,0.7]
[1763589464838,18.12096,135.58,135.55,0.7]
[1763589465417,18.12096,135.58,135.54,62.1]
[1763589465720,18.84096,135.58,135.54,62.8]
[1763589466090,18.12096,135.58,135.54,62.1]
[1763589466290,0.72,135.57,135.54,62.1]
[1763589466513,23.80880753,135.57,135.54,62.1]
[1763589466713,18.12096,135.57,135.54,62.1]
[1763589466919,18.84096,135.57,135.54,62.1]
[1763589467415,0.72,135.57,135.54,62.1]
[1763589467612,18.84096,135.57,135.54,62.1]
[1763589468228,18.12096,135.55,135.54,62.1]
[1763589468798,0.72,135.57,135.54,1.76]
[1763589469708,5.69170992,135.57,135.54,1.76]
[1763589470127,4.97170992,135.57,135.54,2.44]
[1763589470301,18.82096,135.58,135.54,2.44]
[1763589471732,18.12096,135.58,135.55,0.68]
[1763589472029,18.82096,135.6,135.55,0.68]
[1763589472366,18.12096,135.57,135.56,1.76]
[1763589472903,18.82096,135.59,135.56,1.76]
[1763589473098,4.97269654,135.58,135.56,1.76]
[1763589473298,18.82096,135.59,135.56,1.76]
[1763589473803,4.97274707,135.58,135.56,1.76]
[1763589474319,0.7,135.59,135.56,1.76]
[1763589474705,5.67265208,135.59,135.56,1.76]
[1763589474903,5.67265208,135.59,135.56,2.44]
[1763589475123,23.79361208,135.59,135.56,1.76]
[1763589475427,18.12096,135.56,135.55,1.76]
[1763589475930,0.7,135.58,135.55,1.76]
[1763589476338,18.12096,135.56,135.55,1.76]
[1763589477136,18.12096,135.55,135.54,1.76]
[1763589477739,18.12096,135.55,135.53,0.2]
[1763589477929,18.12096,135.55,135.54,0.68]
[1763589480330,18.12096,135.55,135.53,0.2]
[1763589480532,18.12096,135.55,135.53,0.88]
[1763589480739,18.12096,135.55,135.54,0.68]
[1763589481315,18.12096,135.55,135.53,0.88]
[1763589481819,18.12096,135.55,135.54,0.68]
[1763589482051,18.12096,135.55,135.53,0.88]
[1763589482358,18.12096,135.55,135.53,0.2]
[1763589482531,18.82096,135.55,135.53,0.2]
[1763589482715,18.12096,135.55,135.53,0.2]
[1763589482921,18.12096,135.55,135.53,0.88]
[1763589483239,18.12096,135.55,135.53,2.64]
[1763589483443,0.7,135.6,135.54,0.68]
[1763589483645,1.76,135.62,135.54,62.78]
[1763589483646,9.78882769,135.61,135.54,62.78]
[1763589483847,8.29187762,135.63,135.54,0.68]
[1763589484052,0.7,135.62,135.55,1.41773515]
[1763589484226,0.7,135.62,135.56,2.44]
[1763589484432,0.7,135.64,135.56,2.44]
[1763589484634,18.12096,135.62,135.57,0.68]
[1763589484849,18.12096,135.62,135.58,1.76]
[1763589485030,0.7,135.61,135.58,1.76]
[1763589485436,0.7,135.61,135.58,2.44]
[1763589486236,18.12096,135.62,135.59,0.68]
[1763589487460,0.7,135.61,135.53,0.93784401]
[1763589487765,18.12096,135.58,135.54,0.68]
[1763589488133,18.12096,135.62,135.54,10.46882769]
[1763589488558,18.12096,135.62,135.55,0.68]
[1763589488733,18.82096,135.63,135.55,0.68]
[1763589489155,18.82096,135.63,135.55,62.78]
[1763589489545,18.82096,135.63,135.56,0.68]
[1763589489748,18.82096,135.63,135.57,1.76]
[1763589490258,18.82096,135.63,135.58,0.68]
[1763589491358,0.7,135.62,135.58,0.68]
[1763589492335,18.12096,135.63,135.58,0.68]
[1763589492537,18.82096,135.63,135.58,0.68]
[1763589492937,18.12096,135.63,135.58,0.68]
[1763589493136,18.82096,135.63,135.58,0.68]
[1763589493552,18.12096,135.63,135.58,0.68]
[1763589493753,27.90978769,135.67,135.58,62.78]
[1763589493957,4.96670315,135.66,135.58,62.78]
[1763589494157,18.12096,135.66,135.59,0.68]
[1763589494345,4.96670315,135.65,135.59,0.68]
[1763589495149,18.12096,135.66,135.59,1.41751751]
[1763589495346,18.12096,135.68,135.59,0.68]
[1763589495541,0.7,135.7,135.6,0.68]
[1763589495748,0.7,135.7,135.61,1.76]
[1763589495959,18.12096,135.68,135.61,1.76]
[1763589496241,18.12096,135.68,135.62,0.68]
[1763589497472,0.7,135.67,135.57,62.1]
[1763589497690,9.78882769,135.66,135.58,0.68]
[1763589497846,18.12096,135.63,135.58,2.44]
[1763589498343,18.12096,135.63,135.59,0.68]
[1763589498876,18.82096,135.63,135.59,0.68]
[1763589499042,18.82096,135.67,135.59,0.68]
[1763589499241,7.96837894,135.7,135.59,0.68]
[1763589499242,10.48882769,135.69,135.59,0.68]
[1763589499452,18.12096,135.66,135.59,0.68]
[1763589499852,18.83096,135.66,135.59,0.68]
[1763589500981,0.71,135.7,135.6,10.52629081]
[1763589501268,18.12096,135.68,135.6,9.78882769]
[1763589501473,0.71,135.7,135.61,0.68]
[1763589501655,18.12096,135.67,135.61,0.68]
[1763589505072,0.2,135.71,135.62,9.78882769]
[1763589505270,0.2,135.71,135.64,9.78882769]
[1763589505648,0.2,135.71,135.63,2.4973]
[1763589505649,0.2,135.71,135.66,9.78882769]
[1763589506067,0.2,135.71,135.68,9.78882769]
[1763589506281,0.2,135.71,135.69,2.44]
[1763589506760,0.2,135.71,135.7,0.68]
[1763589509258,0.2,135.71,135.7,2.44]
[1763589511561,0.2,135.71,135.7,64.54]
[1763589512770,0.88,135.71,135.67,9.78882769]
[1763589512976,0.88,135.71,135.65,1.76]
[1763589513178,0.68,135.7,135.65,1.76]
[1763589513685,18.80096,135.7,135.65,1.76]
[1763589514189,18.12096,135.68,135.65,1.76]
[1763589514393,0.68,135.67,135.65,1.76]
[1763589515994,0.68,135.67,135.6,0.68]
[1763589516172,0.68,135.67,135.6,2.44]
[1763589517171,18.12096,135.63,135.6,2.44]
[1763589517478,18.12096,135.63,135.6,1.76]
[1763589517996,18.12096,135.63,135.6,2.44]
[1763589519688,0.68,135.64,135.6,1.76]
[1763589519901,0.68,135.64,135.61,0.68]
[1763589520392,0.68,135.67,135.61,0.68]
[1763589520694,9.78882769,135.66,135.6,1.76]
[1763589520866,18.12096,135.63,135.6,1.76]
[1763589521282,0.68,135.62,135.6,1.76]
[1763589522008,18.80096,135.63,135.6,1.76]
[1763589522681,0.68,135.65,135.61,0.68]
[1763589522999,0.68,135.65,135.6,2.44]
[1763589523373,0.68,135.65,135.6,63.86]
[1763589526096,0.68,135.65,135.6,1.76]
[1763589526607,18.12096,135.61,135.6,1.76]
[1763589526993,18.80096,135.61,135.6,1.76]
[1763589527194,18.12096,135.61,135.6,1.76]
[1763589528703,0.68,135.64,135.6,2.44]
[1763589529005,18.12096,135.62,135.6,1.76]
[1763589529387,18.80096,135.62,135.6,1.76]
[1763589529799,18.12096,135.62,135.6,1.76]
[1763589530011,0.7,135.66,135.61,0.69]
[1763589530717,0.7,135.66,135.58,0.69]
[1763589530882,0.7,135.66,135.59,2.45]
[1763589531080,0.7,135.66,135.6,0.69]
[1763589533912,0.7,135.68,135.6,0.69]
[1763589534090,18.12096,135.67,135.6,0.69]
[1763589534517,0.7,135.68,135.6,0.69]
[1763589534723,18.12096,135.67,135.6,0.69]
[1763589535084,0.7,135.66,135.6,0.69]
[1763589535500,18.12096,135.62,135.59,1.76]
[1763589536085,18.12096,135.62,135.59,2.45]
[1763589536297,18.82096,135.62,135.59,2.45]
[1763589536513,18.82096,135.62,135.59,1.76]
[1763589536725,18.82096,135.62,135.59,2.45]
[1763589537023,18.82096,135.66,135.6,0.69]
[1763589539026,0.2,135.71,135.61,9.78882769]
[1763589539194,0.9,135.71,135.63,9.78882769]
[1763589539399,0.9,135.71,135.64,1.76]
[1763589539693,0.2,135.71,135.64,2.45]
[1763589539899,0.2,135.71,135.65,0.69]
[1763589540204,0.9,135.71,135.65,0.69]
[1763589541093,0.7,135.7,135.65,0.69]
[1763589541499,0.7,135.7,135.64,1.76]
[1763589541796,18.12096,135.68,135.64,2.45]
[1763589541992,18.12096,135.68,135.65,0.69]
[1763589542191,18.32096,135.71,135.65,0.69]
[1763589542446,19.02096,135.71,135.65,0.69]
[1763589542792,18.32096,135.71,135.65,0.69]
[1763589543194,0.2,135.71,135.66,9.78882769]
[1763589543703,0.2,135.71,135.67,0.69]
[1763589544040,0.2,135.71,135.68,9.78882769]
[1763589544209,0.2,135.71,135.69,1.76]
[1763589545921,0.2,135.71,135.69,2.45]
[1763589546118,0.2,135.71,135.69,1.76]
[1763589546322,0.2,135.71,135.69,2.45]
[1763589547340,0.2,135.71,135.69,1.76]
[1763589547941,0.9,135.71,135.69,1.76]
[1763589549118,0.9,135.71,135.64,0.69]
[1763589549119,0.7,135.7,135.64,0.69]
[1763589549326,18.82096,135.7,135.64,62.79]
[1763589549643,18.82096,135.7,135.64,64.15]
[1763589549844,18.12096,135.68,135.64,64.15]
[1763589550214,18.82096,135.68,135.64,64.15]
[1763589551143,18.12096,135.68,135.65,0.69]
[1763589552224,0.7,135.7,135.65,0.69]
[1763589552448,18.82096,135.7,135.65,0.69]
[1763589552938,0.7,135.69,135.65,0.69]
[1763589554531,0.7,135.69,135.65,62.79]
[1763589556640,18.12096,135.7,135.66,0.69]
[1763589556946,18.82096,135.7,135.66,0.69]
[1763589557522,0.7,135.69,135.66,0.69]
[1763589557922,0.7,135.69,135.67,1.76]
[1763589558118,0.7,135.69,135.6,0.69]
[1763589558341,0.7,135.69,135.61,2.45]
[1763589558342,18.12096,135.66,135.61,2.45]
[1763589558719,0.7,135.65,135.61,2.45]
[1763589559047,18.82096,135.65,135.61,2.45]
[1763589559918,18.82096,135.65,135.61,1.76]
[1763589560348,18.82096,135.65,135.61,2.47]
[1763589560921,0.7,135.64,135.56,0.71]
[1763589561220,18.12096,135.6,135.57,1.76]
[1763589561740,0.7,135.59,135.57,1.76]
[1763589563733,0.7,135.59,135.56,1.76]
[1763589564436,0.7,135.59,135.56,2.47]
[1763589565747,0.67,135.63,135.57,0.72]
[1763589566053,18.12096,135.61,135.57,0.72]
[1763589566546,18.79096,135.61,135.57,0.72]
[1763589567653,18.79096,135.61,135.58,1.76]
[1763589568829,18.79096,135.61,135.58,2.48]
[1763589569150,18.79096,135.61,135.59,1.76]
[1763589569838,18.79096,135.64,135.6,0.72]
[1763589570048,0.67,135.63,135.6,1.76]
[1763589571653,0.67,135.63,135.58,0.72]
[1763589571846,0.67,135.63,135.59,1.76]
[1763589572242,0.67,135.63,135.59,2.48]
[1763589573638,0.67,135.63,135.59,0.72]
[1763589573840,0.67,135.63,135.59,2.48]
[1763589575444,0.67,135.63,135.59,1.76]
[1763589575650,18.12096,135.64,135.6,0.72]
[1763589575837,18.79096,135.64,135.6,0.72]
[1763589576044,0.67,135.63,135.6,0.72]
[1763589576638,18.12096,135.64,135.6,0.72]
[1763589576846,0.67,135.65,135.6,0.72]
[1763589577239,0.67,135.65,135.59,63.86]
[1763589577558,0.67,135.65,135.59,64.58]
[1763589577779,0.67,135.65,135.59,2.48]
[1763589579051,0.67,135.65,135.6,0.72]
[1763589580064,0.67,135.65,135.59,1.76]
[1763589582143,18.12096,135.64,135.59,1.76]
[1763589582544,0.67,135.63,135.59,2.48]
[1763589583070,0.67,135.63,135.59,63.86]
[1763589585966,0.67,135.63,135.59,62.82]
[1763589586192,9.78882769,135.62,135.54,0.72]
[1763589586400,18.12096,135.59,135.54,0.72]
[1763589586843,0.67,135.58,135.54,0.72]
[1763589589661,0.67,135.58,135.54,2.48]
[1763589590361,18.12096,135.59,135.55,0.7]
[1763589590559,0.67,135.59,135.55,0.7]
[1763589590761,0.67,135.59,135.54,1.76]
[1763589590762,0.67,135.59,135.56,0.7]
[1763589591476,0.67,135.59,135.54,1.76]
[1763589591675,0.67,135.59,135.55,0.7]
[1763589591875,18.12096,135.61,135.55,0.7]
[1763589592568,0.67,135.6,135.55,0.7]
[1763589593749,18.79096,135.61,135.55,0.7]
[1763589594887,2.95672099,135.62,135.55,62.8]
[1763589595066,18.12096,135.61,135.55,62.8]
[1763589595264,1.76,135.66,135.56,11.22650842]
[1763589595265,0.67,135.66,135.56,11.22650842]
[1763589595454,6.17803991,135.68,135.58,9.78882769]
[1763589595455,18.12096,135.68,135.58,9.78882769]
[1763589595667,18.12096,135.64,135.59,0.7]
[1763589595860,0.67,135.67,135.59,0.7]
[1763589596060,18.12096,135.65,135.59,0.7]
[1763589596265,18.79096,135.68,135.59,0.7]
[1763589596465,0.67,135.68,135.59,0.7]
[1763589596677,18.79096,135.67,135.59,0.7]
[1763589597180,18.12096,135.65,135.59,0.7]
[1763589597557,18.79096,135.65,135.59,0.7]
[1763589598285,0.67,135.64,135.59,0.7]
[1763589599863,18.12096,135.65,135.59,0.7]
[1763589600181,18.79096,135.65,135.59,0.7]
[1763589600499,18.12096,135.61,135.57,0.7]
[1763589600789,18.12096,135.61,135.54,1.76]
[1763589600962,18.12096,135.6,135.56,0.7]
[1763589601164,18.79096,135.6,135.56,0.7]
[1763589601390,18.12096,135.6,135.56,0.7]
[1763589601690,18.12096,135.63,135.56,0.7]
[1763589601868,18.79096,135.63,135.56,0.7]
[1763589602066,18.12096,135.63,135.56,0.7]
[1763589602464,18.12096,135.63,135.59,3.0]
[1763589602877,18.12096,135.63,135.6,0.7]
[1763589603074,18.12096,135.63,135.59,4.76]
[1763589603393,18.12096,135.63,135.59,5.46]
[1763589603394,18.79096,135.63,135.59,5.46]
[1763589603883,18.12096,135.63,135.59,5.46]
[1763589604076,18.79096,135.63,135.59,5.46]
[1763589604264,18.79096,135.63,135.6,0.7]
[1763589604465,18.12096,135.64,135.6,0.7]
[1763589604890,6.84803991,135.68,135.6,0.7]
[1763589605072,4.96587251,135.7,135.61,9.78882769]
[1763589605266,9.78882769,135.68,135.61,9.78882769]
[1763589605475,4.96587251,135.68,135.62,0.7]
[1763589605665,0.67,135.69,135.62,0.7]
[1763589605871,18.12096,135.68,135.62,0.7]
[1763589606076,0.67,135.69,135.62,0.7]
[1763589606392,18.12096,135.68,135.62,0.7]
[1763589606578,4.96279076,135.67,135.62,0.7]
[1763589606899,4.96279076,135.67,135.59,3.0]
[1763589606900,18.12096,135.63,135.59,3.0]
[1763589607189,18.12096,135.63,135.59,3.7]
[1763589607513,18.12096,135.63,135.6,0.7]
[1763589607696,0.67,135.62,135.59,3.0]
[1763589607874,18.12096,135.61,135.59,3.0]
[1763589608265,0.67,135.6,135.59,3.0]
[1763589609463,18.79096,135.6,135.59,3.0]
[1763589610071,0.67,135.6,135.59,3.0]
[1763589610275,18.79096,135.6,135.59,3.0]
[1763589610972,0.67,135.6,135.59,3.0]
[1763589611169,10.45882769,135.6,135.59,3.0]
[1763589611383,18.12096,135.6,135.59,3.0]
[1763589611995,18.79096,135.6,135.59,3.0]
[1763589613377,5.63577809,135.6,135.59,3.0]
[1763589613584,0.67,135.6,135.59,3.0]
[1763589616379,15.42354838,135.6,135.59,3.0]
[1763589616700,12.21882769,135.6,135.59,3.0]